[Event "POL-chT 2nd League-4 2020"]
[Site "Poronin"]
[Date "2020.09.11"]
[Round "7.11"]
[White "Borowski, Przemyslaw"]
[Black "Sochacki, Zenon"]
[Result "0-1"]
[ECO "A45"]
[WhiteElo "1842"]
[BlackElo "1885"]
[Annotator "NA RC"]
[PlyCount "128"]
[EventDate "2020.09.05"]
[EventType "team-tourn"]
[EventCountry "POL"]
[SourceTitle "playchess.com"]
[Source "ChessBase"]
[SourceQuality "1"]
[WhiteTeam "Goniec Zarow"]
[BlackTeam "SILESIA Raciborz"]
[TimeControl "40/5400+30:900+30"]

1. d4 {[%emt 0:00:00]} Nf6 {[%emt 0:00:00]} 2. Bg5 {[%emt 0:00:00]} Ne4 {[%emt 0:00:38]} 3. h4 {[%emt 0:00:00]} c5 {[%emt 0:00:16]} 4. d5 {[%emt 0:00:02]} Qb6 {[%emt 0:00:33]} 5. Nd2 {[%emt 0:00:21]} Nxd2 {[%emt 0:01:54]} 6. Bxd2 {[%emt 0:00:15] A45: Trompowsky Attack.} e5 {[%emt 0:04:43]} 7. e4 {[%emt 0:02:51] [#]} g6 $146 {[%emt 0:01:13]} ({Predecessor:} 7... d6 8. a4 Nd7 9. a5 Qc7 10. c4 Be7 11. Bd3 Qd8 12. g3 O-O 13. Nf3 Nf6 {0-1 (42) Harika,D (2480)-Khademalsharieh,S (2372) Hamedan 2018}) 8. Bc3 {[%emt 0:08:23]} d6 {[%emt 0:01:14]} 9. f4 {[%emt 0:05:45]} Bg7 {[%emt 0:02:49]} 10. h5 {[%emt 0:04:27]} Nd7 {[%emt 0:03:05]} 11. hxg6 {[%emt 0:10:15]} hxg6 {[%emt 0:01:08]} 12. Rxh8+ {[%emt 0:00:32]} Bxh8 {[%emt 0:00:02]} 13. Nf3 {[%emt 0:03:15]} Nf6 {[%emt 0:25:07]} 14. Qe2 {[%emt 0:03:50]} Ng4 {[%emt 0:02:48]} 15. O-O-O {[%emt 0:07:19]} Bd7 {[%emt 0:02:01]} 16. Ng5 {[%emt 0:10:35]} Bf6 {[%emt 0:04:52]} 17. Qe1 {[%emt 0:04:00]} Qc7 {[%emt 0:02:20]} 18. Nh7 {[%emt 0:02:23]} Bg7 {[%emt 0:04:17]} 19. fxe5 {[%emt 0:03:28]} Bxe5 {[%emt 0:00:31]} 20. Bxe5 {[%emt 0:00:46]} Nxe5 {[%emt 0:00:10]} 21. Qh4 {[%emt 0:07:18]} Qd8 {[%emt 0:01:54]} 22. Nf6+ {[%emt 0:12:11]} Kf8 {[%emt 0:00:35]} 23. Qh6+ {[%emt 0:05:57]} Ke7 {[%emt 0:00:27]} 24. Qg5 {[%emt 0:00:32]} Qh8 {[%emt 0:02:26]} 25. Nxd7+ {[%emt 0:02:49]} Kxd7 {[%emt 0:00:09]} 26. Bb5+ {[%emt 0:00:27]} Kc8 {[%emt 0:00:40]} 27. Rf1 {[%emt 0:02:13]} Qd8 {[%emt 0:01:09]} 28. Qg3 {[%emt 0:01:12]} a6 {[%emt 0:01:05]} 29. Be2 {[%emt 0:00:03]} Kc7 {[%emt 0:00:42]} 30. b4 {[%emt 0:02:12]} cxb4 {[%emt 0:03:50]} 31. Kb2 {[%emt 0:01:21]} (31. Qe3 $17) 31... Qd7 {[%emt 0:01:10]} 32. c3 {[%emt 0:00:32]} Qa4 {[%emt 0:02:08]} 33. c4 {[%emt 0:00:26]} Qa3+ {[%emt 0:03:36]} 34. Qxa3 {[%emt 0:00:04]} bxa3+ {[%emt 0:00:25]} 35. Kxa3 {[%emt 0:00:01]} Rh8 {[%emt 0:00:24]} 36. Kb4 {[%emt 0:00:21]} b6 {[%emt 0:01:14]} 37. a4 {[%emt 0:00:54]} Rh2 {[%emt 0:05:25]} 38. Rf2 {[%emt 0:01:11]} Rh1 {[%emt 0:00:17]} 39. Bf1 {[%emt 0:00:20]} Rh4 {[%emt 0:02:11]} 40. a5 $19 {[%emt 0:00:00]} (40. Re2 {was worth a try.}) 40... Rxe4 {[%emt 0:00:00]} 41. axb6+ {[%emt 0:01:56]} Kxb6 {[%emt 0:01:57]} 42. Rf6 {[%emt 0:00:42]} a5+ {[%emt 0:00:31]} 43. Ka4 {[%emt 0:01:59]} Nxc4 {[%emt 0:03:33]} 44. Bxc4 {[%emt 0:02:30]} Rxc4+ {[%emt 0:04:06]} 45. Kb3 {[%emt 0:00:04]} Kc5 {[%emt 0:02:24]} 46. Rxf7 {[%emt 0:00:06]} a4+ {[%emt 0:00:07]} 47. Ka3 {[%emt 0:00:37]} Kxd5 {[%emt 0:03:48]} 48. Rf3 {[%emt 0:00:25]} g5 {[%emt 0:01:16]} 49. Rf5+ {[%emt 0:00:22]} Ke6 {[%emt 0:01:36]} 50. Rxg5 {[%emt 0:00:06]} d5 {[%emt 0:00:34]} 51. Rg8 {[%emt 0:00:27]} d4 {[%emt 0:00:52]} 52. Rf8 {[%emt 0:03:19]} Ke5 {[%emt 0:00:47]} 53. g4 {[%emt 0:00:38]} d3 {[%emt 0:00:40]} 54. Re8+ {[%emt 0:02:31]} Kf4 {[%emt 0:00:20]} 55. g5 {[%emt 0:01:08]} Rd4 {[%emt 0:01:59]} 56. Re1 {[%emt 0:05:59]} d2 {[%emt 0:00:32]} 57. Rd1 {[%emt 0:00:07]} Kxg5 {[%emt 0:00:05]} 58. Kb2 {[%emt 0:01:42]} Kf4 {[%emt 0:00:07]} 59. Kc2 {[%emt 0:00:21]} Ke3 {[%emt 0:00:13]} 60. Rh1 {[%emt 0:00:15]} Rc4+ {[%emt 0:02:19]} 61. Kb1 {[%emt 0:01:02]} a3 {[%emt 0:00:40]} 62. Rg1 {[%emt 0:00:34]} a2+ {[%emt 0:00:45]} 63. Kxa2 {[%emt 0:00:29]} Rc1 {[%emt 0:00:07]} 64. Rg3+ {[%emt 0:00:34]} Kf4 {[%emt 0:00:23]} 0-1

[Event "POL-chT 2nd League-4 2020"]
[Site "Poronin"]
[Date "2020.09.11"]
[Round "7.12"]
[White "Suchanek, Paulina"]
[Black "Czaplewska, Klara"]
[Result "1/2-1/2"]
[ECO "A50"]
[WhiteElo "1555"]
[BlackElo "1875"]
[Annotator "NA RC"]
[PlyCount "33"]
[EventDate "2020.09.05"]
[EventType "team-tourn"]
[EventCountry "POL"]
[SourceTitle "playchess.com"]
[Source "ChessBase"]
[SourceQuality "1"]
[WhiteTeam "SILESIA Raciborz"]
[BlackTeam "Goniec Zarow"]
[TimeControl "40/5400+30:900+30"]

1. d4 Nf6 2. c4 Nc6 3. Nc3 e5 4. e3 Bb4 5. Nf3 exd4 6. exd4 Bxc3+ 7. bxc3 O-O 8. Be2 d6 9. O-O h6 10. Re1 Re8 11. Ba3 b6 12. Qc2 Ne7 13. c5 Bf5 14. Qb3 dxc5 15. dxc5 Be6 16. Qc2 Bd5 17. Rad1 1/2-1/2

[Event "POL-chT 2nd League-4 2020"]
[Site "Poronin"]
[Date "2020.09.11"]
[Round "7.16"]
[White "Rainer, Piotr"]
[Black "Babiarz, Arkadiusz"]
[Result "0-1"]
[ECO "B43"]
[WhiteElo "1641"]
[BlackElo "1872"]
[Annotator "NA RC"]
[PlyCount "54"]
[EventDate "2020.09.05"]
[EventType "team-tourn"]
[EventCountry "POL"]
[SourceTitle "playchess.com"]
[Source "ChessBase"]
[SourceQuality "1"]
[WhiteTeam "Goniec Staniatki"]
[BlackTeam "Rzeszowski Klub Szachowy"]
[TimeControl "40/5400+30:900+30"]

1. e4 {[%emt 0:00:22]} c5 {[%emt 0:00:00]} 2. Nf3 {[%emt 0:00:35]} e6 {[%emt 0:00:00]} 3. d4 {[%emt 0:00:47]} cxd4 {[%emt 0:00:00]} 4. Nxd4 {[%emt 0:00:06]} a6 {[%emt 0:00:00]} 5. Nc3 {[%emt 0:01:24]} Qc7 {[%emt 0:00:14]} 6. a3 {[%emt 0:02:04]} Nf6 {[%emt 0:00:21]} 7. Be2 {[%emt 0:03:14]} b5 {[%emt 0:00:48]} 8. Bg5 {[%emt 0:10:17]} Be7 {[%emt 0:02:46]} 9. O-O {[%emt 0:01:23]} Bb7 {[%emt 0:02:32]} 10. Bf3 {[%emt 0:02:31]} Ng4 {[%emt 0:00:59]} 11. Bxg4 {[%emt 0:05:36]} Bxg5 {[%emt 0:00:39]} 12. Ndxb5 {[%emt 0:17:30]} axb5 {[%emt 0:00:10]} 13. Nxb5 {[%emt 0:00:05]} Qb6 {[%emt 0:03:07]} 14. Nd6+ {[%emt 0:00:47]} Kf8 {[%emt 0:00:33]} 15. Nxb7 {[%emt 0:03:48]} Qxb7 {[%emt 0:00:06]} 16. f4 {[%emt 0:02:14]} Be7 {[%emt 0:02:02]} 17. f5 {[%emt 0:05:49]} h5 {[%emt 0:10:07]} 18. fxe6 {[%emt 0:05:32]} hxg4 {[%emt 0:14:13]} 19. Rxf7+ {[%emt 0:01:32]} Ke8 {[%emt 0:01:02]} 20. Qd4 {[%emt 0:07:00]} dxe6 {[%emt 0:04:07]} 21. Rxg7 {[%emt 0:07:44]} Bc5 {[%emt 0:01:03]} 22. Qxc5 {[%emt 0:00:26]} Qxg7 {[%emt 0:00:10]} 23. Qc8+ {[%emt 0:02:00]} Ke7 {[%emt 0:00:33]} 24. Qb7+ {[%emt 0:01:17]} Nd7 {[%emt 0:00:06]} 25. Rd1 {[%emt 0:00:10]} Rad8 {[%emt 0:00:46]} 26. a4 {[%emt 0:01:30]} Qe5 {[%emt 0:00:18]} 27. Qb4+ {[%emt 0:00:53]} Qc5+ {[%emt 0:00:05]} 0-1

[Event "POL-chT 2nd League-4 2020"]
[Site "Poronin"]
[Date "2020.09.11"]
[Round "7.18"]
[White "Siwek, Kinga"]
[Black "Polak, Sylwia"]
[Result "1/2-1/2"]
[ECO "B42"]
[WhiteElo "1804"]
[BlackElo "1590"]
[Annotator "NA RC"]
[PlyCount "44"]
[EventDate "2020.09.05"]
[EventType "team-tourn"]
[EventCountry "POL"]
[SourceTitle "playchess.com"]
[Source "ChessBase"]
[SourceQuality "1"]
[WhiteTeam "Goniec Staniatki"]
[BlackTeam "Rzeszowski Klub Szachowy"]
[TimeControl "40/5400+30:900+30"]

1. e4 {[%emt 0:00:00]} c5 {[%emt 0:00:00]} 2. Nf3 {[%emt 0:00:30]} e6 {[%emt 0:00:30]} 3. d4 {[%emt 0:00:05]} cxd4 {[%emt 0:00:07]} 4. Nxd4 {[%emt 0:00:04]} a6 $14 {[%emt 0:00:08]} 5. Bd3 {[%emt 0:00:11]} Qc7 {[%emt 0:00:09]} 6. Nc3 {[%emt 0:00:00]} Nf6 {[%emt 0:00:00]} 7. O-O {[%emt 0:00:44]} d6 {[%emt 0:00:00]} 8. Be3 {[%emt 0:01:01]} b5 {[%emt 0:00:45]} 9. a3 {[%emt 0:01:51]} Bb7 {[%emt 0:00:14]} 10. Qe2 {[%emt 0:01:25]} Nbd7 {[%emt 0:00:13]} 11. f4 {[%emt 0:02:47]} Be7 {[%emt 0:01:21]} 12. Kh1 {[%emt 0:03:26]} Rc8 {[%emt 0:01:16]} 13. Rad1 {[%emt 0:04:19]} Nb6 {[%emt 0:05:20]} 14. Nb3 {[%emt 0:05:20]} Nc4 {[%emt 0:07:24]} 15. Bxc4 {[%emt 0:01:16]} Qxc4 {[%emt 0:00:28]} 16. Qxc4 {[%emt 0:04:14]} bxc4 {[%emt 0:05:00]} 17. Nd2 {[%emt 0:01:10]} Ng4 {[%emt 0:14:59]} 18. Bd4 {[%emt 0:06:31]} e5 {[%emt 0:02:53]} 19. fxe5 {[%emt 0:02:56]} dxe5 {[%emt 0:09:19]} 20. Bg1 {[%emt 0:00:50]} O-O {[%emt 0:05:30]} 21. Nf3 {[%emt 0:01:07]} Bc5 {[%emt 0:04:36]} 22. Bxc5 {[%emt 0:04:02]} Rxc5 1/2-1/2

[Event "POL-chT 2nd League-4 2020"]
[Site "Poronin"]
[Date "2020.09.12"]
[Round "8.2"]
[White "Laszewicz, Pawel"]
[Black "Smagalski, Slawomir"]
[Result "1/2-1/2"]
[ECO "C88"]
[WhiteElo "2150"]
[BlackElo "1940"]
[Annotator "NA"]
[PlyCount "69"]
[EventDate "2020.09.05"]
[EventType "team-tourn"]
[EventCountry "POL"]
[SourceTitle "playchess.com"]
[Source "ChessBase"]
[SourceQuality "1"]
[WhiteTeam "GIECEK Radkow"]
[BlackTeam "HETMAN Konin"]
[TimeControl "40/5400+30:900+30"]

1. e4 {[%emt 0:00:00]} e5 {[%emt 0:00:00]} 2. Nf3 {[%emt 0:00:00]} Nc6 {[%emt 0:00:00]} 3. Bb5 {[%emt 0:00:00]} a6 {[%emt 0:00:00]} 4. Ba4 {[%emt 0:00:09]} Nf6 {[%emt 0:00:02]} 5. O-O {[%emt 0:00:30]} b5 {[%emt 0:00:21]} 6. Bb3 {[%emt 0:00:18]} Be7 {[%emt 0:00:07]} 7. Re1 {[%emt 0:04:20]} O-O {[%emt 0:00:15]} 8. Nc3 {[%emt 0:10:02]} d6 {[%emt 0:01:54]} 9. Nd5 {[%emt 0:03:51]} Na5 {[%emt 0:07:37]} 10. d4 {[%emt 0:18:23]} Nxb3 {[%emt 0:04:33]} 11. Nxe7+ {[%emt 0:03:54]} Qxe7 {[%emt 0:00:04]} 12. axb3 {[%emt 0:00:23]} h6 {[%emt 0:00:23]} 13. h3 {[%emt 0:03:01]} Bb7 {[%emt 0:05:21]} 14. d5 {[%emt 0:01:56]} Nh7 {[%emt 0:01:04]} 15. g4 {[%emt 0:02:36]} c5 {[%emt 0:07:34]} 16. Be3 {[%emt 0:03:06]} Ng5 {[%emt 0:07:09]} 17. Nxg5 $14 {[%emt 0:03:11]} hxg5 {[%emt 0:00:06]} 18. Qd2 {[%emt 0:00:19]} f6 {[%emt 0:00:07]} 19. Kg2 {[%emt 0:00:58]} Kf7 {[%emt 0:00:22]} 20. Rh1 {[%emt 0:04:32]} Rh8 {[%emt 0:00:08]} 21. f3 {[%emt 0:00:28]} g6 {[%emt 0:06:48]} 22. Rh2 {[%emt 0:05:44]} Rh7 {[%emt 0:12:37]} 23. Rah1 {[%emt 0:01:01]} Rah8 {[%emt 0:00:22]} 24. Qa5 {[%emt 0:11:40]} Qd8 {[%emt 0:00:24]} 25. Qe1 {[%emt 0:07:48]} b4 {[%emt 0:11:57]} 26. c3 {[%emt 0:05:56]} a5 {[%emt 0:01:47]} 27. c4 {[%emt 0:00:21]} Kg7 {[%emt 0:03:28]} 28. Qa1 {[%emt 0:00:42]} Bc8 {[%emt 0:01:57]} 29. Qa2 {[%emt 0:00:54]} Kg8 {[%emt 0:01:34]} 30. Bf2 {[%emt 0:02:02]} Qb6 {[%emt 0:05:42]} 31. Ra1 {[%emt 0:01:29]} Ra7 {[%emt 0:00:11]} 32. Qb1 {[%emt 0:00:23]} Bd7 {[%emt 0:01:51]} 33. Qc2 {[%emt 0:00:39]} Be8 {[%emt 0:01:15]} 34. Rah1 {[%emt 0:03:25]} Rah7 {[%emt 0:04:32]} 35. Ra1 {[%emt 0:01:22]} 1/2-1/2

[Event "POL-chT 2nd League-4 2020"]
[Site "Poronin"]
[Date "2020.09.12"]
[Round "8.3"]
[White "Papka, Sebastian"]
[Black "Machlowski, Slawomir"]
[Result "1-0"]
[ECO "A43"]
[WhiteElo "2139"]
[BlackElo "2098"]
[Annotator "NA"]
[PlyCount "79"]
[EventDate "2020.09.05"]
[EventType "team-tourn"]
[EventCountry "POL"]
[SourceTitle "playchess.com"]
[Source "ChessBase"]
[SourceQuality "1"]
[WhiteTeam "HETMAN Konin"]
[BlackTeam "GIECEK Radkow"]
[TimeControl "40/5400+30:900+30"]

1. d4 c5 2. d5 {[%emt 0:00:20]} e6 {[%emt 0:00:08]} 3. c4 {[%emt 0:00:15]} exd5 {[%emt 0:00:12]} 4. cxd5 {[%emt 0:00:01]} d6 {[%emt 0:00:07]} 5. Nc3 {[%emt 0:00:18]} Ne7 {[%emt 0:00:15]} 6. e4 {[%emt 0:00:10]} Ng6 {[%emt 0:00:05]} 7. g3 {[%emt 0:00:34]} Be7 {[%emt 0:00:30]} 8. Bg2 {[%emt 0:00:21]} O-O {[%emt 0:00:36]} 9. f4 {[%emt 0:00:34]} Bf6 $14 {[%emt 0:00:35]} 10. Nge2 {[%emt 0:01:02]} Bg4 {[%emt 0:01:05]} 11. O-O {[%emt 0:02:26]} Re8 {[%emt 0:00:38]} 12. h3 {[%emt 0:04:40]} Bxe2 {[%emt 0:01:19]} 13. Qxe2 {[%emt 0:00:49]} Na6 {[%emt 0:01:24]} 14. e5 {[%emt 0:06:53]} dxe5 {[%emt 0:01:11]} 15. f5 {[%emt 0:00:56]} Nf8 {[%emt 0:22:12]} 16. Ne4 {[%emt 0:01:25]} Qb6 {[%emt 0:04:35]} 17. d6 {[%emt 0:07:17]} Nd7 {[%emt 0:02:45]} 18. Qg4 {[%emt 0:04:45]} c4+ {[%emt 0:06:20]} 19. Kh2 {[%emt 0:01:04]} Nac5 {[%emt 0:04:55]} 20. Be3 {[%emt 0:06:39]} Rac8 {[%emt 0:04:40]} 21. Bxc5 {[%emt 0:06:54]} Rxc5 {[%emt 0:00:12]} 22. Nxc5 {[%emt 0:00:25]} Qxc5 {[%emt 0:00:29]} 23. Qe4 {[%emt 0:01:58]} b5 {[%emt 0:03:01]} 24. Rfd1 {[%emt 0:11:39]} Rd8 {[%emt 0:02:06]} 25. a4 {[%emt 0:09:22]} b4 {[%emt 0:03:11]} 26. a5 {[%emt 0:04:05]} c3 {[%emt 0:08:58]} 27. bxc3 {[%emt 0:00:34]} bxc3 {[%emt 0:00:16]} 28. Rd5 {[%emt 0:03:32]} Qf2 {[%emt 0:01:16]} 29. Rc1 {[%emt 0:02:08]} Bg5 {[%emt 0:02:57]} 30. Rxc3 {[%emt 0:01:43]} Nf6 {[%emt 0:00:21]} 31. Qxe5 {[%emt 0:05:21]} Nxd5 {[%emt 0:10:00]} 32. Qxd5 {[%emt 0:00:07]} h5 {[%emt 0:01:12]} 33. Rf3 {[%emt 0:04:22]} Qe1 {[%emt 0:00:40]} 34. h4 {[%emt 0:02:01]} Bf6 {[%emt 0:00:53]} 35. Rf1 {[%emt 0:06:12]} Qc3 {[%emt 0:01:51]} 36. Rf3 {[%emt 0:02:55]} Qe1 {[%emt 0:04:31]} 37. Rb3 {[%emt 0:01:40]} Kh7 {[%emt 0:04:56]} 38. Qxf7 {[%emt 0:01:13]} Qxa5 {[%emt 0:00:59]} 39. Qxh5+ {[%emt 0:00:13]} Kg8 {[%emt 0:00:02]} 40. Rd3 {[%emt 0:00:51]} 1-0

[Event "POL-chT 2nd League-4 2020"]
[Site "Poronin"]
[Date "2020.09.12"]
[Round "8.4"]
[White "Majocha, Piotr"]
[Black "Walaszczyk, Witold"]
[Result "1/2-1/2"]
[ECO "A11"]
[WhiteElo "2047"]
[BlackElo "2028"]
[Annotator "ChessBase"]
[PlyCount "123"]
[EventDate "2020.09.05"]
[EventType "team-tourn"]
[EventCountry "POL"]
[SourceTitle "playchess.com"]
[Source "ChessBase"]
[SourceQuality "1"]
[WhiteTeam "GIECEK Radkow"]
[BlackTeam "HETMAN Konin"]
[TimeControl "40/5400+30:900+30"]

1. c4 {[%emt 0:00:00]} c6 {[%emt 0:00:00]} 2. Nf3 {[%emt 0:00:00]} d5 {[%emt 0:00:00]} 3. e3 {[%emt 0:00:00]} Nf6 {[%emt 0:00:16]} 4. Nc3 {[%emt 0:00:00]} e6 {[%emt 0:00:44]} 5. d4 {[%emt 0:00:01]} Bd6 {[%emt 0:01:17]} 6. Qc2 {[%emt 0:00:17]} O-O {[%emt 0:00:35]} 7. b3 {[%emt 0:00:06]} Nbd7 {[%emt 0:00:46]} 8. Be2 {[%emt 0:00:15]} b6 {[%emt 0:08:40]} 9. cxd5 {[%emt 0:14:10]} exd5 {[%emt 0:00:57]} 10. O-O {[%emt 0:00:10]} Bb7 {[%emt 0:00:39]} 11. Bd3 {[%emt 0:02:02]} h6 {[%emt 0:05:21]} 12. Bb2 {[%emt 0:01:26]} Rc8 {[%emt 0:02:52]} 13. Rac1 {[%emt 0:09:23]} Re8 {[%emt 0:03:09]} 14. Qb1 {[%emt 0:03:45]} Nf8 {[%emt 0:02:50]} 15. e4 {[%emt 0:09:59]} Bf4 {[%emt 0:07:02]} 16. Rcd1 {[%emt 0:00:49]} dxe4 {[%emt 0:00:21]} 17. Nxe4 {[%emt 0:00:15]} Nd5 {[%emt 0:00:29]} 18. Nc3 {[%emt 0:05:18]} Nxc3 {[%emt 0:06:09]} 19. Bxc3 {[%emt 0:00:05]} Qf6 {[%emt 0:00:31]} 20. Qb2 {[%emt 0:02:28]} Bb8 {[%emt 0:09:32]} 21. d5 {[%emt 0:05:50]} Qf4 {[%emt 0:03:10]} 22. Bc4 {[%emt 0:31:08]} cxd5 {[%emt 0:02:57]} 23. Bxd5 {[%emt 0:00:04]} Bxd5 {[%emt 0:00:08]} 24. Rxd5 {[%emt 0:00:04]} Ne6 {[%emt 0:00:10]} 25. Be5 {[%emt 0:06:55]} Qe4 {[%emt 0:05:07]} 26. Rd2 {[%emt 0:04:24]} Bxe5 {[%emt 0:01:18]} 27. Qxe5 {[%emt 0:00:08]} Qxe5 {[%emt 0:03:28]} 28. Nxe5 {[%emt 0:00:04]} Nf4 {[%emt 0:00:55]} 29. Nc4 {[%emt 0:01:14]} Re2 {[%emt 0:00:47]} 30. Rxe2 {[%emt 0:03:21]} Nxe2+ {[%emt 0:00:06]} 31. Kh1 {[%emt 0:00:10]} Nc3 {[%emt 0:00:13]} 32. a4 {[%emt 0:00:48]} Nxa4 {[%emt 0:00:18]} 33. Nd6 {[%emt 0:00:35]} Rd8 {[%emt 0:01:04]} 34. Nxf7 {[%emt 0:00:37]} Kxf7 {[%emt 0:00:28]} 35. bxa4 {[%emt 0:00:03]} Rd2 {[%emt 0:00:15]} 36. a5 {[%emt 0:01:21]} b5 {[%emt 0:01:08]} 37. g3 {[%emt 0:00:13]} Ra2 {[%emt 0:00:25]} 38. Rc1 {[%emt 0:00:13]} Rxa5 {[%emt 0:00:55]} 39. Rc7+ {[%emt 0:00:05]} Kf6 {[%emt 0:00:24]} 40. Kg2 {[%emt 0:00:00]} Ra3 {[%emt 0:00:00]} 41. Rb7 {[%emt 0:00:16]} a6 {[%emt 0:00:43]} 42. h4 {[%emt 0:00:05]} h5 {[%emt 0:02:31]} 43. f3 {[%emt 0:00:20]} Ra4 {[%emt 0:00:10]} 44. Kf2 {[%emt 0:00:15]} b4 {[%emt 0:00:26]} 45. Ke3 {[%emt 0:00:04]} a5 {[%emt 0:00:07]} 46. g4 {[%emt 0:03:27]} hxg4 {[%emt 0:01:52]} 47. fxg4 {[%emt 0:00:06]} b3 {[%emt 0:09:45]} 48. Rxb3 {[%emt 0:00:31]} Rxg4 {[%emt 0:00:05]} 49. Rb6+ {[%emt 0:00:12]} Kf7 {[%emt 0:00:18]} 50. Ra6 {[%emt 0:00:55]} a4 {[%emt 0:05:55]} 51. h5 {[%emt 0:00:33]} Rh4 {[%emt 0:00:22]} 52. Kf3 {[%emt 0:01:02]} Ke7 {[%emt 0:00:11]} 53. h6 {[%emt 0:11:10]} gxh6 {[%emt 0:13:01]} 54. Kg3 {[%emt 0:00:05]} Re4 {[%emt 0:00:10]} 55. Rxh6 {[%emt 0:00:05]} Re6 {[%emt 0:00:15]} 56. Rh7+ {[%emt 0:00:16]} Kd6 {[%emt 0:00:05]} 57. Ra7 {[%emt 0:00:05]} Re4 {[%emt 0:00:07]} 58. Kf3 {[%emt 0:00:11]} Rh4 {[%emt 0:00:10]} 59. Ke3 {[%emt 0:05:34]} Kc5 {[%emt 0:02:01]} 60. Kd3 {[%emt 0:00:05]} Kb4 {[%emt 0:02:03]} 61. Kc2 {[%emt 0:00:04]} Ka3 {[%emt 0:06:15]} 62. Kb1 {[%emt 0:00:13]} 1/2-1/2

[Event "POL-chT 2nd League-4 2020"]
[Site "Poronin"]
[Date "2020.09.12"]
[Round "8.5"]
[White "Swiatnicki, Andrzej"]
[Black "Szydelko, Michal"]
[Result "1-0"]
[ECO "D01"]
[WhiteElo "2004"]
[BlackElo "1877"]
[Annotator "ChessBase"]
[PlyCount "109"]
[EventDate "2020.09.05"]
[EventType "team-tourn"]
[EventCountry "POL"]
[SourceTitle "playchess.com"]
[Source "ChessBase"]
[SourceQuality "1"]
[WhiteTeam "HETMAN Konin"]
[BlackTeam "GIECEK Radkow"]
[TimeControl "40/5400+30:900+30"]

1. d4 {[%emt 0:00:00]} d5 {[%emt 0:00:00]} 2. Nc3 {[%emt 0:00:00]} Nf6 {[%emt 0:00:13]} 3. Bg5 {[%emt 0:00:00]} Nbd7 {[%emt 0:00:31]} 4. Nf3 {[%emt 0:00:19]} e6 {[%emt 0:01:05]} 5. e4 {[%emt 0:00:24]} dxe4 {[%emt 0:00:13]} 6. Nxe4 {[%emt 0:00:09]} Be7 {[%emt 0:00:07]} 7. Bxf6 {[%emt 0:00:11]} Nxf6 {[%emt 0:00:09]} 8. Bd3 {[%emt 0:04:18]} O-O {[%emt 0:02:33]} 9. O-O {[%emt 0:00:27]} b6 {[%emt 0:20:14]} 10. Nxf6+ {[%emt 0:04:45]} Bxf6 {[%emt 0:00:08]} 11. Be4 {[%emt 0:00:09]} Rb8 {[%emt 0:00:33]} 12. Qd3 {[%emt 0:00:19]} h6 {[%emt 0:03:36]} 13. Rad1 {[%emt 0:01:34]} Qe7 {[%emt 0:14:53]} 14. Ne5 {[%emt 0:01:39]} Bxe5 {[%emt 0:12:34]} 15. dxe5 {[%emt 0:00:08]} Bb7 {[%emt 0:00:32]} 16. Bxb7 {[%emt 0:01:20]} Rxb7 {[%emt 0:00:04]} 17. Qe4 {[%emt 0:11:08]} Rbb8 {[%emt 0:07:56]} 18. Rd4 {[%emt 0:04:12]} Rbd8 {[%emt 0:03:53]} 19. Rfd1 {[%emt 0:00:22]} Qb4 {[%emt 0:06:36]} 20. g3 {[%emt 0:02:08]} Rxd4 {[%emt 0:01:31]} 21. Qxd4 {[%emt 0:00:09]} Qxd4 {[%emt 0:01:17]} 22. Rxd4 {[%emt 0:00:07]} Rc8 {[%emt 0:02:35]} 23. Kf1 {[%emt 0:00:39]} Kf8 {[%emt 0:00:13]} 24. Ke2 {[%emt 0:00:09]} Ke7 {[%emt 0:00:50]} 25. Rc4 {[%emt 0:02:19]} Kd7 {[%emt 0:09:22]} 26. b4 {[%emt 0:01:34]} c5 {[%emt 0:08:42]} 27. b5 {[%emt 0:01:30]} Kc7 {[%emt 0:01:42]} 28. Rf4 {[%emt 0:01:57]} Rf8 {[%emt 0:00:15]} 29. g4 {[%emt 0:00:41]} f5 {[%emt 0:01:33]} 30. exf6 {[%emt 0:07:03]} gxf6 {[%emt 0:00:26]} 31. h4 {[%emt 0:00:32]} Kd6 {[%emt 0:00:24]} 32. g5 {[%emt 0:00:51]} hxg5 {[%emt 0:00:04]} 33. hxg5 {[%emt 0:00:05]} f5 {[%emt 0:01:00]} 34. Rh4 {[%emt 0:01:56]} Rg8 {[%emt 0:00:43]} 35. f4 {[%emt 0:00:30]} e5 {[%emt 0:00:14]} 36. Ke3 {[%emt 0:00:59]} e4 {[%emt 0:00:46]} 37. c4 {[%emt 0:00:09]} Rd8 {[%emt 0:00:28]} 38. Rh6+ {[%emt 0:03:34]} Ke7 {[%emt 0:00:06]} 39. Rh7+ {[%emt 0:00:19]} Ke6 {[%emt 0:00:16]} 40. Rxa7 {[%emt 0:00:00]} Rd3+ {[%emt 0:00:00]} 41. Ke2 {[%emt 0:01:15]} Rf3 {[%emt 0:00:42]} 42. Rb7 {[%emt 0:00:10]} Rxf4 {[%emt 0:00:16]} 43. Rxb6+ {[%emt 0:00:05]} Ke5 {[%emt 0:00:13]} 44. Rc6 {[%emt 0:07:49]} Kd4 {[%emt 0:07:39]} 45. Rd6+ {[%emt 0:04:21]} Kxc4 {[%emt 0:00:16]} 46. b6 {[%emt 0:00:06]} Rh4 {[%emt 0:00:26]} 47. b7 {[%emt 0:00:10]} Rh8 {[%emt 0:01:49]} 48. Rb6 {[%emt 0:00:12]} Rb8 {[%emt 0:01:01]} 49. a4 {[%emt 0:01:07]} Kd4 {[%emt 0:00:44]} 50. a5 {[%emt 0:00:12]} f4 {[%emt 0:00:18]} 51. a6 {[%emt 0:00:17]} f3+ {[%emt 0:01:32]} 52. Kf2 {[%emt 0:00:23]} e3+ {[%emt 0:00:16]} 53. Kxf3 {[%emt 0:00:37]} Rf8+ {[%emt 0:00:12]} 54. Ke2 {[%emt 0:00:49]} Rf2+ {[%emt 0:00:46]} 55. Ke1 {[%emt 0:00:10]} 1-0